bitfinex/quotes_SOLUSD_20241225
["timestamp","ask_amount","ask_price","bid_price","bid_amount"]
[1735123128647,12.69959,198.82,198.71,7.9637]
[1735123131241,0.12549,198.78,198.71,7.9637]
[1735123132055,20.0,198.79,198.71,7.9637]
[1735123132250,12.5724,198.85,198.71,7.9637]
[1735123132444,7.82889009,198.9,198.74,6.4396]
[1735123132652,7.82889009,198.9,198.75,23.776884]
[1735123133156,0.12549,198.89,198.75,23.776884]
[1735123133544,12.69519,198.89,198.75,23.776884]
[1735123134153,12.5697,198.89,198.75,23.776884]
[1735123134357,20.0,198.86,198.75,23.776884]
[1735123135459,0.12549,198.83,198.74,6.4396]
[1735123135632,12.5729,198.84,198.74,6.4396]
[1735123135836,32.5711,198.87,198.74,6.4396]
[1735123136560,0.12549,198.86,198.75,23.776884]
[1735123137362,0.12549,198.86,198.76,1.6638]
[1735123138362,0.12549,198.84,198.76,1.6638]
[1735123140243,12.69709,198.86,198.76,1.6638]
[1735123140461,0.12549,198.82,198.76,1.6638]
[1735123141666,0.12549,198.8,198.76,1.6638]
[1735123148943,2.01343156,198.86,198.76,1.6638]
[1735123149165,7.82889009,198.94,198.76,1.6638]
[1735123149367,19.84272304,198.92,198.76,1.6638]
[1735123149573,12.5691,198.9,198.76,1.6638]
[1735123150070,37.7073,198.9,198.76,1.6638]
[1735123150454,0.12549,198.86,198.76,1.6638]
[1735123150654,20.0,198.87,198.77,6.3253]
[1735123150859,12.5691,198.9,198.78,23.776884]
[1735123151444,0.12549,198.89,198.78,23.776884]
[1735123151642,17.85895834,198.92,198.8,23.776884]
[1735123151866,13.91269723,198.93,198.81,6.3253]
[1735123152049,12.5672,198.93,198.83,1.6405]
[1735123152255,0.12549,198.92,198.83,1.6405]
[1735123152454,1.96928412,198.97,198.83,1.6405]
[1735123152652,14.53448412,198.97,198.84,23.776884]
[1735123153769,0.12549,198.94,198.83,1.6405]
[1735123153973,0.12549,198.91,198.83,1.6405]
[1735123154160,20.0,198.92,198.83,1.6405]
[1735123154468,12.5659,198.95,198.83,1.6405]
[1735123154673,0.12549,198.94,198.84,6.3253]
[1735123157269,0.12549,198.92,198.84,6.3253]
[1735123158472,20.0,198.95,198.84,6.3253]
[1735123159451,0.12549,198.94,198.84,6.3253]
[1735123160482,0.12549,198.92,198.84,6.3253]
[1735123161667,20.0,198.93,198.84,6.3253]
[1735123162184,0.12549,198.95,198.84,6.3253]
[1735123164181,0.12549,198.95,198.85,23.776884]
[1735123164372,0.12549,198.95,198.84,6.3253]
[1735123165378,12.5653,198.96,198.86,1.6187]
[1735123166584,0.12549,198.95,198.86,1.6187]
[1735123167071,12.5653,198.96,198.86,1.6187]
[1735123167459,0.12549,198.95,198.86,1.6187]
[1735123167779,20.0,198.96,198.87,30.393584]
[1735123167984,12.5635,198.99,198.87,30.393584]
[1735123168572,0.12549,198.98,198.87,30.393584]
[1735123169688,0.12549,198.98,198.87,6.6167]
[1735123170063,20.0,198.96,198.87,6.6167]
[1735123170267,20.0,198.92,198.87,6.6167]
[1735123170470,0.12549,198.91,198.87,6.6167]
[1735123171102,20.12549,198.94,198.87,6.6167]
[1735123171302,20.0,198.9,198.87,6.6167]
[1735123175276,12.5672,198.93,198.87,6.6167]
[1735123175782,0.12549,198.92,198.87,6.6167]
[1735123178100,12.5672,198.93,198.87,6.6167]
[1735123178387,20.0,198.94,198.87,6.6167]
[1735123179117,12.5652,198.97,198.87,6.6167]
[1735123181090,12.5652,198.97,198.88,23.776884]
[1735123181296,12.5652,198.97,198.87,6.6167]
[1735123181900,0.12549,198.96,198.87,6.6167]
[1735123182801,12.5659,198.95,198.87,6.6167]
[1735123183110,0.12549,198.94,198.87,6.6167]
[1735123183800,0.12549,198.92,198.87,6.6167]
[1735123185673,12.69379,198.92,198.87,6.6167]
[1735123187499,12.5683,198.92,198.87,6.6167]
[1735123189114,3.94444963,198.94,198.87,6.6167]
[1735123189287,2.07051098,199.0,198.87,6.6167]
[1735123189480,7.82889009,199.01,198.91,20.0]
[1735123189677,7.82889009,199.01,198.9,23.776884]
[1735123190403,12.5608,199.04,198.9,23.776884]
[1735123190603,20.0,199.01,198.9,23.776884]
[1735123191012,32.94669009,199.07,198.9,23.776884]
[1735123191013,7.82889009,199.07,198.92,6.242]
[1735123191188,7.82889009,199.08,198.94,6.242]
[1735123191510,7.82889009,199.08,198.97,6.242]
[1735123192091,12.68379,199.07,198.97,6.242]
[1735123192491,20.0,199.04,198.97,6.242]
[1735123193312,0.12549,199.03,198.97,6.242]
[1735123195493,32.5582,199.08,198.97,6.242]
[1735123195693,12.96843709,199.11,198.97,6.242]
[1735123195919,12.96843709,199.11,198.98,23.776884]
[1735123196232,0.12549,199.1,198.98,23.776884]
[1735123196393,12.96843709,199.11,198.98,23.776884]
[1735123196904,0.12549,199.1,199.0,23.776884]
[1735123197103,0.12549,199.1,199.01,6.242]
[1735123197425,12.96843709,199.11,199.01,6.242]
[1735123197610,12.553,199.16,199.05,6.242]
[1735123197998,0.12549,199.15,199.05,6.242]
[1735123198604,12.553,199.16,199.05,6.242]
[1735123198807,12.553,199.16,199.06,1.53]
[1735123199006,17.84027535,199.21,199.06,1.53]
[1735123199222,12.5502,199.2,199.06,1.53]
[1735123199824,0.12549,199.19,199.06,1.53]
[1735123200201,0.12549,199.16,199.06,1.53]
[1735123208122,32.5525,199.17,199.06,1.53]
[1735123208123,32.5525,199.17,199.07,23.776884]
[1735123208323,32.5525,199.17,199.06,1.53]
[1735123210230,20.0,199.12,199.06,1.53]
[1735123211922,0.12549,199.11,199.06,1.53]
[1735123212308,20.12549,199.07,199.06,1.53]
[1735123212514,0.12549,199.06,199.01,1.6488]
[1735123213507,20.0,199.07,199.01,1.6488]
[1735123213711,20.0,199.09,199.01,1.6488]
[1735123214224,0.12549,199.08,199.01,1.6488]
[1735123214529,0.12549,199.08,198.82,25.1472]
[1735123214530,0.12549,199.04,198.96,1.6488]
[1735123215532,0.12549,199.02,198.96,1.6488]
[1735123215703,0.12549,198.99,198.96,1.6488]
[1735123216221,20.0,199.0,198.96,7.6504]
[1735123216934,0.12549,198.99,198.96,7.6504]
[1735123217934,0.12549,199.03,198.96,7.6504]
[1735123218323,0.12549,199.03,198.91,6.4985]
[1735123219133,0.12549,198.99,198.91,6.4985]
[1735123219429,20.0,199.0,198.91,6.4985]
[1735123219639,20.0,199.01,198.92,1.6401]
[1735123220532,20.0,198.99,198.92,1.6401]
[1735123221556,26.7473,199.07,198.92,1.6401]
[1735123221719,20.0,199.03,198.92,1.6401]
[1735123222034,12.559,199.06,198.93,23.776884]
[1735123222537,0.12549,199.05,198.93,23.776884]
[1735123224123,20.0,199.03,198.93,23.776884]
[1735123226137,0.12549,199.05,198.93,23.776884]
[1735123226344,32.5571,199.09,198.95,23.776884]
[1735123226543,12.5571,199.09,198.97,23.776884]
[1735123226925,12.5571,199.09,198.98,1.6401]
[1735123227128,12.5571,199.09,198.99,6.4985]
[1735123227517,0.12549,199.08,198.99,6.4985]
[1735123228042,23.902374,199.14,198.99,6.4985]
[1735123228935,0.12549,199.12,198.99,6.4985]
[1735123229441,0.12549,199.09,198.99,6.4985]
[1735123230138,20.0,199.1,199.0,23.776884]
[1735123230442,12.5546,199.13,199.01,1.6401]
[1735123230818,0.12549,199.12,199.01,1.6401]
[1735123231013,12.5526,199.17,199.02,30.75138822]
[1735123231522,0.12549,199.16,199.02,29.997884]
[1735123232338,0.12549,199.15,199.02,29.997884]
[1735123233445,12.67879,199.15,199.02,29.997884]
[1735123234644,12.67879,199.15,199.02,29.947884]
[1735123236925,12.67879,199.15,198.91,122.08663472]
[1735123236926,20.12549,199.15,199.04,23.776884]
[1735123237123,20.12549,199.15,199.05,2.39564458]
[1735123237327,20.0,199.15,199.06,23.776884]
[1735123237626,19.77039535,199.22,199.07,6.97432082]
[1735123237848,19.77039535,199.22,199.08,1.6423]
[1735123238545,0.12549,199.21,199.08,1.6423]
[1735123238723,19.77039535,199.22,199.1,1.6423]
[1735123239137,7.22109535,199.22,199.11,6.97415798]
[1735123239343,7.22109535,199.22,199.12,1.6423]
[1735123239544,7.22109535,199.22,199.13,23.776884]
[1735123239741,7.22109535,199.22,199.15,25.419184]
[1735123239936,5.55449535,199.22,199.2,1.6423]
[1735123240249,8.0324,199.41,199.21,23.776884]
[1735123240250,7.84391369,199.29,199.21,23.776884]
[1735123240948,7.84391369,199.29,199.21,24.52963971]
[1735123241130,7.84391369,199.29,199.21,23.776884]
[1735123241332,7.84391369,199.29,199.21,24.52967056]
[1735123241539,15.68782739,199.31,199.2,1.6423]
[1735123241540,0.12549,199.31,199.2,1.6423]
[1735123241743,20.12549,199.31,199.2,1.6423]
[1735123243538,20.0,199.29,199.2,1.6423]
[1735123244055,0.12549,199.29,199.2,1.6423]
[1735123244232,0.12549,199.26,199.2,1.6423]
[1735123244927,0.12549,199.24,199.2,1.6423]
[1735123246029,0.12549,199.24,199.08,0.75311453]
[1735123246030,20.0,199.2,199.15,1.6416]
[1735123246930,12.5483,199.23,199.15,1.6416]
[1735123248143,0.12549,199.2,199.15,1.6416]
[1735123249869,37.6335,199.29,199.15,1.6416]
[1735123250162,12.5445,199.29,199.15,1.6416]
[1735123250367,12.5445,199.29,199.16,30.407784]
[1735123250551,0.12549,199.28,199.17,0.75287942]
[1735123250754,12.5445,199.29,199.17,0.75287942]
[1735123251269,6.53162219,199.34,199.17,0.75287942]
[1735123251444,0.12549,199.32,199.17,0.75287942]
[1735123252266,12.542,199.33,199.2,20.0]
[1735123252443,12.542,199.33,199.2,20.75275485]
[1735123253136,12.542,199.33,199.22,6.6309]
[1735123253364,12.542,199.33,199.22,7.38359087]
[1735123253563,0.12549,199.32,199.22,6.6309]
[1735123256082,12.542,199.33,199.22,6.6309]
[1735123256287,6.53162219,199.34,199.24,1.6416]
[1735123256948,6.53162219,199.34,199.25,0.75262234]
[1735123257760,0.12549,199.33,199.24,1.6416]
[1735123259875,6.53162219,199.34,199.24,1.6416]
[1735123260056,0.12549,199.32,199.24,1.6416]
[1735123260563,20.0,199.3,199.24,1.6416]
[1735123263885,12.542,199.33,199.24,1.6416]
[1735123264252,6.53162219,199.34,199.24,1.5916]
[1735123265766,0.12549,199.33,199.24,1.5916]
[1735123265972,23.902374,199.33,199.24,1.5916]
[1735123266182,0.12549,199.31,199.24,1.5916]
[1735123266584,20.0,199.29,199.24,1.5916]
[1735123266794,0.12549,199.28,199.24,1.5916]
[1735123267486,0.12549,199.29,199.24,1.5916]
[1735123267779,12.67009,199.29,199.24,1.5916]
[1735123268481,12.67009,199.29,199.18,1.5346]
[1735123268482,0.12549,199.25,199.18,1.5346]
[1735123269585,12.67249,199.26,199.18,1.5346]
[1735123271479,20.0,199.27,199.18,1.5346]
[1735123271686,0.12549,199.26,199.18,1.5346]
[1735123272676,0.12549,199.25,199.18,1.5346]
[1735123274389,20.0,199.23,199.18,1.5346]
[1735123274682,0.12549,199.22,199.18,1.5346]
[1735123277986,0.12549,199.21,199.12,6.0901]
[1735123278387,0.12549,199.21,199.11,1.5104]
[1735123278693,0.12549,199.15,199.11,1.5104]
[1735123279285,0.12549,199.15,199.07,6.0901]
[1735123279880,0.12549,199.15,199.07,7.6005]
[1735123280978,20.12549,199.15,199.07,7.6005]
[1735123282393,5.65290923,199.18,199.08,23.776884]
[1735123282689,5.65290923,199.18,199.1,23.776884]
[1735123283496,5.65290923,199.18,199.08,24.53007538]
[1735123286472,5.65290923,199.18,199.07,7.6005]
[1735123286879,12.67749,199.17,199.07,7.6005]
[1735123287396,5.65290923,199.18,199.07,7.6005]
[1735123288914,5.65290923,199.18,199.08,23.776884]
[1735123289419,5.65290923,199.18,199.07,7.6005]
[1735123290184,0.12549,199.17,199.07,7.6005]
[1735123290593,0.12549,199.17,199.02,7.7037]
[1735123290594,20.12549,199.13,199.02,7.7037]
[1735123292719,20.0,199.09,199.02,7.7037]
[1735123293091,12.5534,199.15,199.02,7.7037]
[1735123293321,20.0,199.12,199.02,7.7037]
[1735123294493,0.12549,199.11,199.02,7.7037]
[1735123294785,12.68129,199.11,199.02,7.7037]
[1735123296740,20.0,199.08,199.02,7.7037]
[1735123298335,0.12549,199.03,198.96,8.062]
[1735123299200,20.0,199.04,198.96,8.062]
[1735123299509,36.333384,199.1,198.96,8.062]
[1735123299714,0.12549,199.06,198.96,8.062]
[1735123300211,36.333384,199.1,198.96,8.062]
[1735123300700,0.12549,199.09,198.96,8.062]
[1735123301619,20.0,199.07,198.96,8.062]
[1735123303333,0.12549,199.06,198.96,8.062]
[1735123311757,20.0,199.07,198.96,8.062]
[1735123312416,12.5539,199.15,198.98,23.776884]
[1735123312640,12.5539,199.15,199.02,8.1822]
[1735123313040,0.12549,199.14,199.02,8.1822]
[1735123313621,12.5539,199.15,199.03,24.53034511]
[1735123313827,5.65290923,199.18,199.03,24.53034511]
[1735123314027,18.20440923,199.18,199.03,24.53034511]
[1735123314726,5.65290923,199.18,199.05,23.776884]
[1735123314944,5.65290923,199.18,199.04,8.1822]
[1735123314945,5.65290923,199.18,199.07,43.776884]
[1735123315269,5.65290923,199.18,199.08,0.75326032]
[1735123315731,5.65290923,199.18,199.09,23.776884]
[1735123315934,5.65290923,199.18,199.08,0.75326032]
[1735123316161,5.65290923,199.18,199.07,20.7533008]
[1735123316360,0.12549,199.17,199.07,20.0]
[1735123316551,0.12549,199.17,199.05,0.75330186]
[1735123323159,12.67809,199.17,199.04,8.1822]
[1735123324947,12.67809,199.17,199.05,24.53026457]
[1735123328072,12.5526,199.17,199.05,24.53026457]
[1735123328376,5.65290923,199.18,199.09,30.265084]
[1735123328582,5.65290923,199.18,199.1,0.75315782]
[1735123328752,12.5478,199.24,199.1,0.75315782]
[1735123328953,0.12549,199.23,199.1,0.75315782]
[1735123329786,20.0,199.21,199.1,0.75315782]
[1735123330654,23.902374,199.21,199.09,8.0071]
[1735123331575,0.12549,199.17,199.09,8.0071]
[1735123332551,12.67799,199.17,199.09,8.0071]
[1735123335167,20.0,199.14,199.09,8.0071]
[1735123337384,12.67799,199.17,199.09,8.0071]
[1735123337752,20.0,199.14,199.09,8.0071]
[1735123337981,0.12549,199.13,199.04,6.0416]
[1735123338158,0.12549,199.13,199.04,7.6071]
[1735123338957,20.0,199.09,199.04,7.6071]
[1735123339384,12.5552,199.12,199.04,7.6071]
[1735123339763,20.0,199.14,199.04,7.6071]
[1735123339978,7.84391369,199.17,199.05,0.75343712]
[1735123340157,0.12549,199.17,199.05,0.75343712]
[1735123340357,7.84391369,199.19,199.06,23.776884]
[1735123340567,7.84391369,199.19,199.07,0.75327278]
[1735123341197,12.5489,199.22,199.08,7.6071]
[1735123341379,12.5489,199.22,199.1,23.776884]
[1735123341696,7.84391369,199.24,199.13,6.0416]
[1735123341880,7.84391369,199.24,199.13,6.79465628]
[1735123342194,12.5468,199.26,199.13,6.79465628]
[1735123342392,12.5468,199.26,199.13,6.0416]
[1735123344708,23.902374,199.23,199.13,6.0416]
[1735123345685,0.12549,199.21,199.13,6.0416]
[1735123348303,20.0,199.17,199.13,6.0416]
[1735123350290,0.12549,199.17,199.12,1.5655]
[1735123354309,12.5527,199.16,199.12,1.5655]
[1735123354513,0.12549,199.15,199.08,6.0416]
[1735123356294,32.67749,199.17,199.08,6.0416]
[1735123359345,20.0,199.17,199.08,6.0416]
[1735123359493,20.39401369,199.21,199.08,6.79483298]
[1735123359813,0.12549,199.2,199.08,6.79483298]
[1735123359996,20.39401369,199.21,199.1,8.2476]
[1735123360311,7.84391369,199.24,199.14,1.6562]
[1735123360519,7.84391369,199.24,199.15,0.75297832]
[1735123360697,0.12549,199.26,199.15,0.75297832]
[1735123360896,17.82731109,199.27,199.16,6.5914]
[1735123361219,0.12549,199.26,199.16,6.5914]
[1735123361591,17.82731109,199.27,199.16,6.5914]
[1735123361793,12.5464,199.26,199.16,6.5914]
[1735123362931,0.12549,199.25,199.16,6.5914]
[1735123364887,12.5464,199.26,199.16,6.5914]
[1735123365105,17.82731109,199.27,199.16,6.5914]
[1735123365593,0.12549,199.27,199.16,6.5914]
[1735123365824,20.0,199.25,199.16,6.5914]
[1735123366417,0.12549,199.24,199.16,6.5914]
[1735123366926,0.12549,199.22,199.16,6.5914]
[1735123367099,12.67649,199.19,199.14,1.6562]
[1735123367296,20.0,199.16,199.14,1.6562]
[1735123369498,12.67649,199.19,199.14,1.6562]
[1735123369702,20.0,199.16,199.14,1.6562]
[1735123379129,12.5525,199.17,199.11,6.3608]
[1735123379335,0.12549,199.16,199.11,6.3608]
[1735123380828,6.51473253,199.21,199.11,6.3608]
[1735123381035,15.68782739,199.23,199.11,7.11396014]
[1735123381419,15.68782739,199.23,199.12,1.5182]
[1735123381818,7.84391369,199.25,199.12,1.5182]
[1735123382015,0.12549,199.24,199.12,1.5182]
[1735123382209,7.84391369,199.25,199.12,1.5182]
[1735123382614,0.12549,199.26,199.12,1.5182]
[1735123382822,0.12549,199.24,199.12,1.5182]
[1735123383531,20.0,199.23,199.12,1.5182]
[1735123384346,12.5464,199.26,199.13,0.75311753]
[1735123384515,12.5464,199.26,199.14,1.5182]
[1735123384721,20.0,199.23,199.14,1.5182]
[1735123387029,0.12549,199.24,199.14,1.5182]
[1735123387220,20.12549,199.24,199.14,1.5182]
[1735123388630,0.12549,199.22,199.14,1.5182]
[1735123388812,20.0,199.19,199.14,1.5182]
[1735123389634,0.12549,199.18,199.14,1.5182]
[1735123389822,0.12549,199.18,199.13,6.4226]
[1735123390015,23.902374,199.18,199.09,1.5895]
[1735123390730,0.12549,199.16,199.09,1.5895]
[1735123390913,12.552,199.17,199.09,1.5895]
[1735123391725,32.5503,199.2,199.09,1.5895]
[1735123394738,2.03151889,199.24,199.09,1.5895]
[1735123395042,0.12549,199.22,199.09,1.5895]
[1735123395352,20.0,199.2,199.09,1.5895]
[1735123399351,12.5483,199.23,199.09,1.5895]
[1735123399556,20.39041369,199.26,199.13,20.0]
[1735123399740,7.84391369,199.26,199.18,20.0]
[1735123399921,7.84391369,199.26,199.19,1.5098]
[1735123400419,7.84391369,199.26,199.21,6.5826]
[1735123400746,7.84391369,199.31,199.22,0.75274892]
[1735123400945,7.84391369,199.31,199.21,7.33528685]
[1735123401847,7.84391369,199.31,199.22,1.5098]
[1735123402241,12.5417,199.34,199.22,1.5098]
[1735123402745,0.12549,199.33,199.22,1.5098]
[1735123406152,12.5426,199.32,199.22,1.5098]
[1735123406864,0.12549,199.31,199.22,1.5098]
[1735123407157,23.902374,199.31,199.22,1.5098]
[1735123407858,12.5439,199.3,199.22,1.5098]
[1735123408178,0.12549,199.29,199.22,1.5098]
[1735123408361,23.902374,199.29,199.22,1.5098]
[1735123408550,0.12549,199.25,199.22,1.5098]
[1735123408753,20.0,199.26,199.21,6.5826]
[1735123409477,0.12549,199.25,199.21,6.5826]
[1735123410353,20.0,199.25,199.21,6.5826]
[1735123411383,0.12549,199.24,199.21,6.5826]
[1735123411564,0.12549,199.24,199.18,1.5784]
[1735123413779,12.5483,199.23,199.18,1.5784]
[1735123416872,32.5465,199.26,199.18,1.5784]
[1735123417769,0.12549,199.25,199.18,1.5784]
[1735123418175,23.902374,199.25,199.18,1.5784]
[1735123419084,0.12549,199.23,199.18,1.5784]
[1735123420372,0.12549,199.2,199.18,1.5784]
[1735123420577,0.12549,199.2,199.05,7.8783]
[1735123420872,0.12549,199.2,199.07,7.8783]
[1735123421078,12.5489,199.22,199.09,7.8783]
[1735123421295,12.5489,199.22,199.11,1.5253]
[1735123421453,0.12549,199.21,199.11,1.5253]
[1735123421975,0.12549,199.18,199.11,1.5253]
[1735123422165,0.12549,199.17,199.11,1.5253]
[1735123422679,12.67809,199.17,199.11,1.5253]
[1735123423379,12.5526,199.17,199.11,1.5253]
[1735123423678,20.0,199.17,199.11,1.5253]
[1735123424269,12.5503,199.2,199.11,1.5253]
[1735123424876,0.12549,199.19,199.11,1.5253]
[1735123426185,12.5483,199.23,199.11,1.5253]
[1735123427495,0.12549,199.23,199.11,1.5253]
[1735123428476,12.5478,199.24,199.11,1.5253]
[1735123428677,12.5478,199.24,199.12,0.75312356]
[1735123429284,12.5478,199.24,199.11,1.5253]
[1735123429789,0.12549,199.23,199.11,1.5253]
[1735123431457,12.5489,199.22,199.11,1.5253]
[1735123431663,0.12549,199.21,199.11,1.5253]
[1735123433085,0.12549,199.19,199.11,1.5253]
[1735123433788,0.12549,199.15,199.11,1.5253]
[1735123434306,0.12549,199.16,199.11,1.5253]
[1735123434703,12.67849,199.16,199.11,1.5253]
[1735123441780,20.0,199.13,199.11,1.5253]
[1735123442178,20.0,199.13,199.09,6.353]
[1735123442475,2.05556155,199.2,199.09,6.353]
[1735123442680,27.77768115,199.22,199.09,6.353]
[1735123442880,0.12549,199.19,199.09,6.353]
[1735123445480,12.5503,199.2,199.09,6.353]
[1735123445686,12.5503,199.2,199.1,1.6622]
[1735123445884,0.12549,199.19,199.1,1.6622]
[1735123446474,20.0,199.17,199.1,1.6622]
[1735123446875,12.5527,199.16,199.1,1.6622]
[1735123449005,0.12549,199.19,199.1,1.6622]
[1735123449500,12.5507,199.2,199.1,1.6622]
[1735123450303,20.0,199.22,199.1,1.6622]
[1735123450505,20.0,199.2,199.1,1.6622]
[1735123450907,0.12549,199.19,199.1,1.6622]
[1735123452097,12.5514,199.18,199.1,1.6622]
[1735123455489,12.5527,199.16,199.1,1.6622]
[1735123456707,20.0,199.2,199.1,1.6622]
[1735123456930,20.0,199.16,199.1,1.6622]
[1735123457292,0.12549,199.17,199.1,1.6622]
[1735123458811,12.67809,199.17,199.1,1.6622]
[1735123459516,20.0,199.19,199.1,1.6622]
[1735123459714,20.0,199.17,199.1,1.6622]
[1735123459915,12.5504,199.2,199.1,1.6622]
[1735123461117,0.12549,199.22,199.1,1.6622]
[1735123461411,23.902374,199.22,199.1,1.6622]
[1735123462195,0.12549,199.2,199.1,1.6622]
[1735123462786,23.902374,199.2,199.1,1.6622]
[1735123463011,0.12549,199.2,199.1,1.6622]
[1735123465612,32.5508,199.19,199.1,1.6622]
[1735123466116,0.12549,199.18,199.1,1.6622]
[1735123466495,43.902374,199.18,199.1,1.6622]
[1735123466695,20.0,199.16,199.1,1.6622]
[1735123467118,20.0,199.15,199.1,1.6622]
[1735123467613,0.12549,199.14,199.1,1.6622]
[1735123469202,20.0,199.15,199.1,1.6622]
[1735123469395,20.39461369,199.2,199.1,1.6622]
[1735123470021,0.12549,199.19,199.1,1.6622]
[1735123470416,0.12549,199.16,199.1,1.6622]
[1735123471121,23.902374,199.16,199.1,1.6622]
[1735123471532,0.12549,199.14,199.1,1.6622]
[1735123474517,20.0,199.12,199.1,1.6622]
[1735123474823,0.12549,199.12,199.05,1.5403]
[1735123475213,20.0,199.09,199.05,1.5403]
[1735123476502,0.12549,199.08,199.05,1.5403]
[1735123478740,20.12549,199.08,199.05,1.5403]
[1735123479036,20.12549,199.07,199.05,1.5403]
[1735123479205,0.12549,199.07,198.94,8.153]
[1735123479404,0.12549,199.07,198.95,0.75377739]
[1735123479706,0.12549,199.07,198.96,1.5403]
[1735123481713,0.12549,199.08,198.96,1.5403]
[1735123482940,23.902374,199.08,198.96,1.5403]
[1735123483106,20.0,199.04,198.96,1.5403]
[1735123483428,23.902374,199.03,198.96,1.5403]
[1735123483821,0.12549,199.03,198.96,1.5403]
[1735123484024,20.0,199.04,198.96,1.5403]
[1735123485422,0.12549,199.03,198.96,1.5403]
[1735123485725,20.0,199.02,198.96,1.5403]
[1735123485913,0.12549,199.01,198.96,1.5403]
[1735123486421,32.5615,199.02,198.96,1.5403]
[1735123486627,23.776884,199.05,198.96,1.5403]
[1735123486827,20.0,199.02,198.96,1.5403]
[1735123487205,23.776884,199.05,198.96,1.5403]
[1735123487828,0.12549,199.04,198.96,1.5403]
[1735123488217,12.68569,199.04,198.96,1.5403]
[1735123488418,0.12549,199.02,198.96,1.5403]
[1735123488618,0.12549,199.02,198.9,20.0]
[1735123489214,12.68749,199.02,198.9,20.0]
[1735123489403,12.68749,199.02,198.89,1.5254]
[1735123490728,0.12549,199.0,198.89,1.5254]
[1735123491320,0.12549,198.97,198.89,1.5254]
[1735123492731,0.12549,198.95,198.89,1.5254]
[1735123493235,0.12549,198.97,198.89,1.5254]
[1735123493837,0.12549,198.93,198.89,1.5254]
[1735123494031,0.12549,198.93,198.87,6.3785]
[1735123494223,23.902374,198.93,198.87,6.3785]
[1735123494936,23.902374,198.93,198.84,1.5254]
[1735123495139,0.12549,198.93,198.84,1.5254]
[1735123497817,23.902374,198.93,198.84,1.5254]
[1735123500014,0.12549,198.93,198.84,1.5254]
[1735123500434,20.71981924,198.98,198.84,1.5254]
[1735123500625,8.15521924,198.98,198.85,6.3785]
[1735123500827,8.15521924,198.98,198.87,1.526]
[1735123501238,12.5647,198.97,198.87,1.526]
[1735123501616,0.12549,198.96,198.87,1.526]
[1735123501949,20.0,198.94,198.87,1.526]
[1735123502114,0.12549,198.93,198.87,1.526]
[1735123502315,20.12549,198.93,198.87,1.526]
[1735123503117,20.0,198.92,198.87,1.526]
[1735123503543,0.12549,198.91,198.87,1.526]
[1735123503750,23.902374,198.91,198.87,1.526]
[1735123504245,23.902374,198.91,198.8,1.526]
[1735123509149,0.12549,198.89,198.8,1.526]
[1735123510248,0.12549,198.87,198.8,1.526]
[1735123513529,20.0,198.88,198.8,1.526]
[1735123514743,0.12549,198.87,198.8,1.526]
[1735123515361,36.473874,198.87,198.8,1.526]
[1735123515646,20.0,198.84,198.8,1.526]
[1735123517350,12.5693,198.9,198.8,1.526]
[1735123517549,20.0,198.86,198.8,1.526]
[1735123517851,20.0,198.87,198.8,1.526]
[1735123520152,0.12549,198.92,198.8,1.526]
[1735123520338,23.902374,198.92,198.8,1.526]
[1735123521155,20.0,198.89,198.8,1.526]
[1735123522934,12.5672,198.93,198.81,6.95571588]